[Event "Titled Tuesday Blitz January 03 Late 2023"]
[White "Mendez Fortes, Eduardo Jesus"]
[Black "Domingo Nunez, Ruben"]
[WhiteFideId "3502376"]
[BlackFideId "22245570"]
[WhiteElo "2250"]
[BlackElo "2416"]
[Result "1-0"]
[Round "08"]
[TimeControl "180+2"]
[Date "2023.01.03"]
[WhiteClock "0:00:04"]
[BlackClock "0:00:02"]

1. e4 {[%clk 0:03:00]}  g6 {[%clk 0:03:00]} 2. d4 {[%clk 0:03:00]}  Bg7 {[%clk 0:03:01]} 3. Nc3 {[%clk 0:02:59]}  c6 {[%clk 0:03:02]} 4. f4 {[%clk 0:02:59]}  d5 {[%clk 0:03:03]} 5. e5 {[%clk 0:03:00]}  f6 {[%clk 0:03:03]} 6. Nf3 {[%clk 0:03:00]}  Nh6 {[%clk 0:03:04]} 7. Bd3 {[%clk 0:02:58]}  O-O {[%clk 0:03:04]} 8. Be3 {[%clk 0:02:52]}  Bg4 {[%clk 0:03:04]} 9. h4 {[%clk 0:02:51]}  fxe5 {[%clk 0:02:59]} 10. dxe5 {[%clk 0:02:51]}  c5 {[%clk 0:02:26]} 11. Bxc5 {[%clk 0:02:45]}  Rxf4 {[%clk 0:02:25]} 12. Qd2 {[%clk 0:02:40]}  Rf8 {[%clk 0:02:21]} 13. O-O-O {[%clk 0:02:38]}  Nc6 {[%clk 0:02:17]} 14. Be2 {[%clk 0:02:31]}  Bxf3 {[%clk 0:01:32]} 15. Bxf3 {[%clk 0:02:30]}  d4 {[%clk 0:01:33]} 16. Bxc6 {[%clk 0:02:18]}  Nf5 {[%clk 0:01:25]} 17. Bd5+ {[%clk 0:02:11]}  Kh8 {[%clk 0:01:24]} 18. Kb1 {[%clk 0:01:58]}  dxc3 {[%clk 0:01:21]} 19. Qxc3 {[%clk 0:01:57]}  Qc7 {[%clk 0:01:18]} 20. Bb4 {[%clk 0:01:49]}  Qxe5 {[%clk 0:01:10]} 21. Qxe5 {[%clk 0:01:46]}  Bxe5 {[%clk 0:01:11]} 22. Rde1 {[%clk 0:01:46]}  Bf6 {[%clk 0:01:10]} 23. h5 {[%clk 0:01:35]}  Ng3 {[%clk 0:01:09]} 24. hxg6 {[%clk 0:01:35]}  Nxh1 {[%clk 0:01:05]} 25. Rxh1 {[%clk 0:01:35]}  h5 {[%clk 0:01:05]} 26. Rxh5+ {[%clk 0:01:34]}  Kg7 {[%clk 0:01:05]} 27. Rh7+ {[%clk 0:01:32]}  Kxg6 {[%clk 0:01:06]} 28. Be4+ {[%clk 0:01:32]}  Kg5 {[%clk 0:01:06]} 29. Bd2+ {[%clk 0:01:17]}  Kg4 {[%clk 0:01:07]} 30. Bxb7 {[%clk 0:00:45]}  Rab8 {[%clk 0:00:57]} 31. Bf3+ {[%clk 0:00:45]}  Kg3 {[%clk 0:00:50]} 32. b4 {[%clk 0:00:19]}  Rfd8 {[%clk 0:00:49]} 33. Be1+ {[%clk 0:00:18]}  Kf4 {[%clk 0:00:50]} 34. c4 {[%clk 0:00:18]}  a5 {[%clk 0:00:31]} 35. Rh3 {[%clk 0:00:18]}  Kf5 {[%clk 0:00:21]} 36. a3 {[%clk 0:00:15]}  Kg6 {[%clk 0:00:18]} 37. Kc2 {[%clk 0:00:14]}  Rd4 {[%clk 0:00:15]} 38. Be2 {[%clk 0:00:13]}  Kf7 {[%clk 0:00:11]} 39. c5 {[%clk 0:00:13]}  Re4 {[%clk 0:00:11]} 40. Kd2 {[%clk 0:00:11]}  Rd8+ {[%clk 0:00:10]} 41. Bd3 {[%clk 0:00:12]}  Bg5+ {[%clk 0:00:10]} 42. Kd1 {[%clk 0:00:11]}  Rf4 {[%clk 0:00:04]} 43. Ke2 {[%clk 0:00:07]}  Bf6 {[%clk 0:00:04]} 44. Bd2 {[%clk 0:00:07]}  Rfd4 {[%clk 0:00:04]} 45. b5 {[%clk 0:00:06]}  Rg4 {[%clk 0:00:03]} 46. Kf1 {[%clk 0:00:02]}  Rd5 {[%clk 0:00:02]} 47. c6 {[%clk 0:00:02]}  Rc5 {[%clk 0:00:02]} 48. Be2 {[%clk 0:00:02]}  Re4 {[%clk 0:00:01]} 49. Bd3 {[%clk 0:00:02]}  Rd4 {[%clk 0:00:01]} 50. Be3 {[%clk 0:00:03]}  Rxd3 {[%clk 0:00:01]} 51. Bxc5 {[%clk 0:00:03]}  Rd1+ {[%clk 0:00:02]} 52. Ke2 {[%clk 0:00:03]}  Rc1 {[%clk 0:00:03]} 53. Rh5 {[%clk 0:00:03]}  Kg6 {[%clk 0:00:03]} 54. g4 {[%clk 0:00:03]}  Kf7 {[%clk 0:00:03]} 55. c7 {[%clk 0:00:03]}  Rc2+ {[%clk 0:00:01]} 56. Kd1 {[%clk 0:00:04]}  Rxc5 {[%clk 0:00:02]} 57. Rxc5 {[%clk 0:00:04]} 1-0


[Site "https://www.chess.com"]

[Event "Titled Tuesday Blitz January 03 Late 2023"]
[White "Jaferian, Koosha"]
[Black "Bayo Milagro, Alvaro"]
[WhiteFideId "12507440"]
[BlackFideId "22275240"]
[WhiteElo "2233"]
[BlackElo "2287"]
[Result "1/2-1/2"]
[Round "08"]
[TimeControl "180+2"]
[Date "2023.01.03"]
[WhiteClock "0:00:04"]
[BlackClock "0:00:02"]

1. c4 {[%clk 0:03:00]}  Nf6 {[%clk 0:02:57]} 2. Nc3 {[%clk 0:03:00]}  g6 {[%clk 0:02:57]} 3. e4 {[%clk 0:02:58]}  d6 {[%clk 0:02:57]} 4. d4 {[%clk 0:02:58]}  Bg7 {[%clk 0:02:58]} 5. Nf3 {[%clk 0:02:58]}  O-O {[%clk 0:02:58]} 6. Be2 {[%clk 0:02:59]}  Bg4 {[%clk 0:02:58]} 7. Be3 {[%clk 0:02:59]}  Nfd7 {[%clk 0:02:58]} 8. Qd2 {[%clk 0:02:50]}  c5 {[%clk 0:02:58]} 9. d5 {[%clk 0:02:49]}  Na6 {[%clk 0:02:58]} 10. Bh6 {[%clk 0:02:49]}  Nc7 {[%clk 0:02:54]} 11. Bxg7 {[%clk 0:02:49]}  Kxg7 {[%clk 0:02:55]} 12. Nd1 {[%clk 0:02:43]}  Bxf3 {[%clk 0:02:50]} 13. Bxf3 {[%clk 0:02:43]}  b5 {[%clk 0:02:49]} 14. Ne3 {[%clk 0:02:41]}  Ne5 {[%clk 0:02:41]} 15. Be2 {[%clk 0:02:41]}  bxc4 {[%clk 0:02:41]} 16. Nxc4 {[%clk 0:02:41]}  Nxc4 {[%clk 0:02:41]} 17. Bxc4 {[%clk 0:02:42]}  Rb8 {[%clk 0:02:38]} 18. h4 {[%clk 0:02:39]}  h5 {[%clk 0:02:37]} 19. Qc3+ {[%clk 0:02:35]}  f6 {[%clk 0:02:35]} 20. Rh3 {[%clk 0:02:35]}  Nb5 {[%clk 0:02:34]} 21. Bxb5 {[%clk 0:02:32]}  Rxb5 {[%clk 0:02:35]} 22. Kf1 {[%clk 0:02:28]}  Qb6 {[%clk 0:02:32]} 23. b3 {[%clk 0:02:28]}  Rb4 {[%clk 0:02:32]} 24. Re1 {[%clk 0:02:28]}  Qa6+ {[%clk 0:02:26]} 25. Kg1 {[%clk 0:02:16]}  Qxa2 {[%clk 0:02:25]} 26. Rg3 {[%clk 0:02:17]}  Rfb8 {[%clk 0:02:09]} 27. Ree3 {[%clk 0:01:18]}  Qb1+ {[%clk 0:02:01]} 28. Kh2 {[%clk 0:01:18]}  Rxe4 {[%clk 0:01:57]} 29. Rxe4 {[%clk 0:01:15]}  Qxe4 {[%clk 0:01:58]} 30. Re3 {[%clk 0:01:15]}  Qxh4+ {[%clk 0:01:55]} 31. Kg1 {[%clk 0:01:15]}  Rb7 {[%clk 0:01:50]} 32. Qa5 {[%clk 0:01:14]}  Qg4 {[%clk 0:01:26]} 33. Qd8 {[%clk 0:01:11]}  Qd7 {[%clk 0:01:25]} 34. Qa8 {[%clk 0:01:11]}  Rc7 {[%clk 0:01:17]} 35. Re6 {[%clk 0:01:05]}  c4 {[%clk 0:00:44]} 36. bxc4 {[%clk 0:01:03]}  Rxc4 {[%clk 0:00:44]} 37. g3 {[%clk 0:01:04]}  h4 {[%clk 0:00:32]} 38. Kg2 {[%clk 0:00:51]}  hxg3 {[%clk 0:00:32]} 39. Kxg3 {[%clk 0:00:49]}  Rc3+ {[%clk 0:00:32]} 40. f3 {[%clk 0:00:48]}  Rc5 {[%clk 0:00:26]} 41. Re2 {[%clk 0:00:41]}  f5 {[%clk 0:00:21]} 42. Qb8 {[%clk 0:00:30]}  Rxd5 {[%clk 0:00:18]} 43. Rh2 {[%clk 0:00:30]}  f4+ {[%clk 0:00:17]} 44. Kxf4 {[%clk 0:00:26]}  Qf5+ {[%clk 0:00:17]} 45. Kg3 {[%clk 0:00:26]}  Qg5+ {[%clk 0:00:17]} 46. Kh3 {[%clk 0:00:25]}  Rd4 {[%clk 0:00:12]} 47. Qb2 {[%clk 0:00:23]}  e5 {[%clk 0:00:09]} 48. Qf2 {[%clk 0:00:24]}  Rf4 {[%clk 0:00:06]} 49. Qxa7+ {[%clk 0:00:22]}  Rf7 {[%clk 0:00:06]} 50. Qf2 {[%clk 0:00:23]}  Rf8 {[%clk 0:00:05]} 51. Qa7+ {[%clk 0:00:18]}  Kf6 {[%clk 0:00:05]} 52. Qh7 {[%clk 0:00:15]}  Qh5+ {[%clk 0:00:03]} 53. Kg3 {[%clk 0:00:06]}  Qxh7 {[%clk 0:00:02]} 54. Rxh7 {[%clk 0:00:07]}  d5 {[%clk 0:00:03]} 55. Rd7 {[%clk 0:00:07]}  d4 {[%clk 0:00:03]} 56. Kg4 {[%clk 0:00:07]}  Rh8 {[%clk 0:00:03]} 57. Rd6+ {[%clk 0:00:07]}  Kf7 {[%clk 0:00:03]} 58. Kg5 {[%clk 0:00:04]}  Rh5+ {[%clk 0:00:03]} 59. Kg4 {[%clk 0:00:04]}  Rf5 {[%clk 0:00:04]} 60. Rd7+ {[%clk 0:00:04]}  Ke6 {[%clk 0:00:04]} 61. Rg7 {[%clk 0:00:05]}  Rf4+ {[%clk 0:00:04]} 62. Kg3 {[%clk 0:00:05]}  Kf6 {[%clk 0:00:05]} 63. Rd7 {[%clk 0:00:05]}  Rf5 {[%clk 0:00:05]} 64. Kg4 {[%clk 0:00:04]}  Rf4+ {[%clk 0:00:06]} 65. Kg3 {[%clk 0:00:04]}  Kg5 {[%clk 0:00:06]} 66. Re7 {[%clk 0:00:04]}  Rf5 {[%clk 0:00:07]} 67. Re6 {[%clk 0:00:03]}  d3 {[%clk 0:00:05]} 68. Rd6 {[%clk 0:00:04]}  d2 {[%clk 0:00:03]} 69. Rxd2 {[%clk 0:00:04]}  Rf8 {[%clk 0:00:03]} 70. Rd5 {[%clk 0:00:04]}  Kf5 {[%clk 0:00:03]} 71. Rd6 {[%clk 0:00:05]}  Ra8 {[%clk 0:00:02]} 72. Rb6 {[%clk 0:00:04]}  Ra3 {[%clk 0:00:03]} 73. Rb4 {[%clk 0:00:03]}  Rc3 {[%clk 0:00:04]} 74. Ra4 {[%clk 0:00:04]}  Re3 {[%clk 0:00:04]} 75. Rb4 {[%clk 0:00:04]}  e4 {[%clk 0:00:03]} 76. Rxe4 {[%clk 0:00:04]}  Rxe4 {[%clk 0:00:03]} 77. fxe4+ {[%clk 0:00:05]}  Kxe4 {[%clk 0:00:04]} 78. Kg4 {[%clk 0:00:06]}  Ke5 {[%clk 0:00:05]} 79. Kg5 {[%clk 0:00:07]}  Ke4 {[%clk 0:00:06]} 80. Kf6 {[%clk 0:00:04]}  g5 {[%clk 0:00:02]} 81. Kxg5 {[%clk 0:00:04]} 1/2-1/2


[Site "https://www.chess.com"]

[Event "Titled Tuesday Blitz January 03 Late 2023"]
[White "Korchmar, Vasiliy"]
[Black "Yurovskykh, Oleksandr"]
[WhiteFideId "24131750"]
[BlackFideId "14134020"]
[WhiteElo "2438"]
[BlackElo "2328"]
[Result "0-1"]
[Round "08"]
[TimeControl "180+2"]
[Date "2023.01.03"]
[WhiteClock "0:00:01"]
[BlackClock "0:00:03"]

1. e4 {[%clk 0:02:55]}  d5 {[%clk 0:02:59]} 2. exd5 {[%clk 0:02:55]}  Qxd5 {[%clk 0:03:00]} 3. Nc3 {[%clk 0:02:55]}  Qd8 {[%clk 0:03:00]} 4. d4 {[%clk 0:02:55]}  Nf6 {[%clk 0:03:00]} 5. Nf3 {[%clk 0:02:51]}  Bg4 {[%clk 0:03:00]} 6. h3 {[%clk 0:02:50]}  Bxf3 {[%clk 0:02:55]} 7. Qxf3 {[%clk 0:02:49]}  c6 {[%clk 0:02:56]} 8. Be3 {[%clk 0:02:47]}  e6 {[%clk 0:02:56]} 9. O-O-O {[%clk 0:02:45]}  Bb4 {[%clk 0:02:56]} 10. Ne4 {[%clk 0:02:43]}  Nxe4 {[%clk 0:02:56]} 11. Qxe4 {[%clk 0:02:44]}  Qd5 {[%clk 0:02:57]} 12. Qg4 {[%clk 0:02:22]}  Qxa2 {[%clk 0:02:50]} 13. c3 {[%clk 0:02:20]}  Bf8 {[%clk 0:02:39]} 14. Bd3 {[%clk 0:02:18]}  Nd7 {[%clk 0:02:36]} 15. Bg5 {[%clk 0:02:09]}  a5 {[%clk 0:02:16]} 16. Rhe1 {[%clk 0:02:07]}  a4 {[%clk 0:02:16]} 17. d5 {[%clk 0:01:38]}  Nc5 {[%clk 0:01:16]} 18. dxe6 {[%clk 0:01:23]}  Nxd3+ {[%clk 0:01:05]} 19. Rxd3 {[%clk 0:01:23]}  Qa1+ {[%clk 0:01:05]} 20. Kd2 {[%clk 0:00:35]}  Qxb2+ {[%clk 0:01:05]} 21. Kd1 {[%clk 0:00:28]}  Qb3+ {[%clk 0:00:41]} 22. Kd2 {[%clk 0:00:21]}  Qa2+ {[%clk 0:00:37]} 23. Kd1 {[%clk 0:00:18]}  Qb3+ {[%clk 0:00:36]} 24. Ke2 {[%clk 0:00:18]}  fxe6 {[%clk 0:00:34]} 25. Kf1 {[%clk 0:00:16]}  Kf7 {[%clk 0:00:15]} 26. Rd7+ {[%clk 0:00:16]}  Kg8 {[%clk 0:00:14]} 27. Qf3 {[%clk 0:00:10]}  e5 {[%clk 0:00:11]} 28. Rxe5 {[%clk 0:00:05]}  a3 {[%clk 0:00:11]} 29. Red5 {[%clk 0:00:03]}  Qb1+ {[%clk 0:00:08]} 30. Rd1 {[%clk 0:00:03]}  Qg6 {[%clk 0:00:08]} 31. Qf4 {[%clk 0:00:02]}  Qe6 {[%clk 0:00:07]} 32. Kg1 {[%clk 0:00:02]}  a2 {[%clk 0:00:07]} 33. R7d3 {[%clk 0:00:02]}  a1=Q {[%clk 0:00:07]} 34. Rxa1 {[%clk 0:00:02]}  Rxa1+ {[%clk 0:00:07]} 35. Kh2 {[%clk 0:00:03]}  Ra8 {[%clk 0:00:06]} 36. Qg3 {[%clk 0:00:04]}  Re8 {[%clk 0:00:06]} 37. Re3 {[%clk 0:00:03]}  Qf7 {[%clk 0:00:06]} 38. Rf3 {[%clk 0:00:03]}  Qd7 {[%clk 0:00:04]} 39. Qh4 {[%clk 0:00:03]}  h6 {[%clk 0:00:04]} 40. Be3 {[%clk 0:00:03]}  Bd6+ {[%clk 0:00:04]} 41. g3 {[%clk 0:00:03]}  Qe7 {[%clk 0:00:04]} 42. Qc4+ {[%clk 0:00:03]}  Qe6 {[%clk 0:00:04]} 43. Qd3 {[%clk 0:00:03]}  Qe4 {[%clk 0:00:05]} 44. Qxd6 {[%clk 0:00:03]}  Qxf3 {[%clk 0:00:05]} 45. Qd7 {[%clk 0:00:02]}  Qf7 {[%clk 0:00:06]} 46. Qd3 {[%clk 0:00:01]}  Rh7 {[%clk 0:00:06]} 47. Bd4 {[%clk 0:00:01]}  Qe6 {[%clk 0:00:05]} 48. h4 {[%clk 0:00:01]}  g6 {[%clk 0:00:06]} 49. h5 {[%clk 0:00:01]}  Rf7 {[%clk 0:00:03]} 0-1


[Site "https://www.chess.com"]

[Event "Titled Tuesday Blitz January 03 Late 2023"]
[White "Garcia Ramos, Daniel"]
[Black "Altman, Joshua"]
[WhiteFideId "32010311"]
[BlackFideId "426210"]
[WhiteElo "2442"]
[BlackElo "2120"]
[Result "1-0"]
[Round "08"]
[TimeControl "180+2"]
[Date "2023.01.03"]
[WhiteClock "0:00:35"]
[BlackClock "0:00:02"]

1. b3 {[%clk 0:03:00]}  d5 {[%clk 0:02:59]} 2. Bb2 {[%clk 0:02:53]}  Bg4 {[%clk 0:02:58]} 3. h3 {[%clk 0:02:50]}  Bh5 {[%clk 0:02:58]} 4. g4 {[%clk 0:02:46]}  Bg6 {[%clk 0:02:58]} 5. Bg2 {[%clk 0:02:47]}  c6 {[%clk 0:02:55]} 6. d3 {[%clk 0:02:48]}  Nf6 {[%clk 0:02:53]} 7. Nd2 {[%clk 0:02:48]}  Nbd7 {[%clk 0:02:53]} 8. f4 {[%clk 0:02:48]}  e6 {[%clk 0:02:52]} 9. Ngf3 {[%clk 0:02:48]}  Bc5 {[%clk 0:02:47]} 10. d4 {[%clk 0:02:42]}  Bd6 {[%clk 0:02:46]} 11. e3 {[%clk 0:02:42]}  Ne4 {[%clk 0:02:45]} 12. O-O {[%clk 0:02:41]}  h5 {[%clk 0:02:41]} 13. g5 {[%clk 0:02:41]}  Ng3 {[%clk 0:02:29]} 14. Nh4 {[%clk 0:02:30]}  Nxf1 {[%clk 0:02:26]} 15. Nxf1 {[%clk 0:02:28]}  Qc7 {[%clk 0:02:13]} 16. Nxg6 {[%clk 0:02:25]}  fxg6 {[%clk 0:02:14]} 17. Qd3 {[%clk 0:02:25]}  Nf8 {[%clk 0:02:07]} 18. c4 {[%clk 0:02:25]}  Qf7 {[%clk 0:02:03]} 19. Nh2 {[%clk 0:02:22]}  O-O-O {[%clk 0:02:01]} 20. c5 {[%clk 0:02:18]}  Bc7 {[%clk 0:01:58]} 21. b4 {[%clk 0:02:18]}  Kb8 {[%clk 0:01:58]} 22. a4 {[%clk 0:02:16]}  Qf5 {[%clk 0:01:52]} 23. Qb3 {[%clk 0:02:13]}  Nd7 {[%clk 0:01:46]} 24. b5 {[%clk 0:02:11]}  Ka8 {[%clk 0:01:38]} 25. a5 {[%clk 0:02:08]}  cxb5 {[%clk 0:01:38]} 26. a6 {[%clk 0:02:07]}  b6 {[%clk 0:01:27]} 27. Qxb5 {[%clk 0:01:57]}  Nb8 {[%clk 0:01:22]} 28. Nf3 {[%clk 0:01:54]}  Qe4 {[%clk 0:01:11]} 29. Bc1 {[%clk 0:01:46]}  Qc2 {[%clk 0:01:04]} 30. Bd2 {[%clk 0:01:43]}  Rc8 {[%clk 0:00:46]} 31. Rc1 {[%clk 0:01:32]}  Qa2 {[%clk 0:00:45]} 32. Bf1 {[%clk 0:01:26]}  Rhf8 {[%clk 0:00:25]} 33. Bd3 {[%clk 0:01:23]}  Qa3 {[%clk 0:00:21]} 34. Nh4 {[%clk 0:01:10]}  Qa2 {[%clk 0:00:14]} 35. Bc3 {[%clk 0:01:06]}  Bxf4 {[%clk 0:00:07]} 36. exf4 {[%clk 0:00:45]}  Rxf4 {[%clk 0:00:07]} 37. Rc2 {[%clk 0:00:46]}  Qxa6 {[%clk 0:00:02]} 38. Qxa6 {[%clk 0:00:43]}  Nxa6 {[%clk 0:00:03]} 39. Bxa6 {[%clk 0:00:39]}  Rcf8 {[%clk 0:00:03]} 40. Nxg6 {[%clk 0:00:36]}  Rf1+ {[%clk 0:00:02]} 41. Bxf1 {[%clk 0:00:35]} 1-0


[Site "https://www.chess.com"]

[Event "Titled Tuesday Blitz January 03 Late 2023"]
[White "Kulkarni, Rakesh"]
[Black "Haydon, David L"]
[WhiteFideId "5037077"]
[BlackFideId "415405"]
[WhiteElo "2321"]
[BlackElo "2253"]
[Result "0-1"]
[Round "08"]
[TimeControl "180+2"]
[Date "2023.01.03"]
[WhiteClock "0:01:13"]
[BlackClock "0:01:59"]

1. e4 {[%clk 0:02:56]}  c6 {[%clk 0:02:59]} 2. c4 {[%clk 0:02:50]}  d5 {[%clk 0:03:00]} 3. cxd5 {[%clk 0:02:51]}  cxd5 {[%clk 0:03:00]} 4. exd5 {[%clk 0:02:47]}  Qxd5 {[%clk 0:03:01]} 5. Nc3 {[%clk 0:02:46]}  Qd8 {[%clk 0:03:02]} 6. Bc4 {[%clk 0:02:47]}  Nf6 {[%clk 0:03:01]} 7. Nf3 {[%clk 0:02:44]}  Nc6 {[%clk 0:02:59]} 8. h3 {[%clk 0:02:43]}  g6 {[%clk 0:02:58]} 9. d4 {[%clk 0:02:43]}  Bg7 {[%clk 0:02:57]} 10. d5 {[%clk 0:02:43]}  Na5 {[%clk 0:02:54]} 11. Be2 {[%clk 0:02:33]}  Bd7 {[%clk 0:02:50]} 12. b4 {[%clk 0:02:26]}  Rc8 {[%clk 0:02:48]} 13. bxa5 {[%clk 0:02:17]}  Rxc3 {[%clk 0:02:46]} 14. Bb2 {[%clk 0:02:18]}  Qxa5 {[%clk 0:02:38]} 15. Bxc3 {[%clk 0:02:12]}  Qxc3+ {[%clk 0:02:37]} 16. Kf1 {[%clk 0:02:13]}  O-O {[%clk 0:02:34]} 17. Rb1 {[%clk 0:02:08]}  b6 {[%clk 0:02:32]} 18. Kg1 {[%clk 0:02:03]}  Rc8 {[%clk 0:02:30]} 19. Kh2 {[%clk 0:02:03]}  Qa3 {[%clk 0:02:15]} 20. Rc1 {[%clk 0:01:32]}  Qd6+ {[%clk 0:02:14]} 21. g3 {[%clk 0:01:31]}  Ne4 {[%clk 0:02:14]} 22. Rxc8+ {[%clk 0:01:29]}  Bxc8 {[%clk 0:02:14]} 23. Kg2 {[%clk 0:01:29]}  Nc3 {[%clk 0:02:10]} 24. Qc2 {[%clk 0:01:21]}  Bb7 {[%clk 0:02:09]} 25. Bc4 {[%clk 0:01:20]}  b5 {[%clk 0:02:07]} 26. Bb3 {[%clk 0:01:18]}  a5 {[%clk 0:02:07]} 27. a4 {[%clk 0:01:13]}  bxa4 {[%clk 0:02:04]} 28. Bxa4 {[%clk 0:01:13]}  Qxd5 {[%clk 0:01:59]} 0-1


[Site "https://www.chess.com"]

[Event "Titled Tuesday Blitz January 03 Late 2023"]
[White "Shuvalova, Polina"]
[Black "Sukandar, Irine Kharisma"]
[WhiteFideId "24171760"]
[BlackFideId "7101937"]
[WhiteElo "2484"]
[BlackElo "2390"]
[Result "1/2-1/2"]
[Round "08"]
[TimeControl "180+2"]
[Date "2023.01.03"]
[WhiteClock "0:00:05"]
[BlackClock "0:00:27"]

1. d4 {[%clk 0:03:00]}  Nf6 {[%clk 0:02:59]} 2. Nf3 {[%clk 0:03:00]}  d5 {[%clk 0:02:59]} 3. Bf4 {[%clk 0:02:59]}  e6 {[%clk 0:02:53]} 4. e3 {[%clk 0:02:59]}  Bd6 {[%clk 0:02:52]} 5. Bxd6 {[%clk 0:02:59]}  Qxd6 {[%clk 0:02:53]} 6. c4 {[%clk 0:03:00]}  O-O {[%clk 0:02:52]} 7. Nc3 {[%clk 0:02:59]}  b6 {[%clk 0:02:50]} 8. Rc1 {[%clk 0:02:57]}  Ba6 {[%clk 0:02:49]} 9. cxd5 {[%clk 0:02:53]}  Nxd5 {[%clk 0:02:28]} 10. Nxd5 {[%clk 0:02:47]}  Qxd5 {[%clk 0:02:18]} 11. Bxa6 {[%clk 0:02:39]}  Nxa6 {[%clk 0:02:17]} 12. Qa4 {[%clk 0:02:38]}  Qb7 {[%clk 0:02:17]} 13. O-O {[%clk 0:02:37]}  c5 {[%clk 0:02:15]} 14. Ne5 {[%clk 0:02:13]}  Rfd8 {[%clk 0:02:12]} 15. Rfd1 {[%clk 0:01:56]}  h6 {[%clk 0:02:08]} 16. Qc6 {[%clk 0:01:43]}  Qxc6 {[%clk 0:02:00]} 17. Nxc6 {[%clk 0:01:44]}  Rd6 {[%clk 0:02:00]} 18. Ne5 {[%clk 0:01:34]}  Rad8 {[%clk 0:01:57]} 19. Nf3 {[%clk 0:01:15]}  Nb4 {[%clk 0:01:57]} 20. a3 {[%clk 0:01:14]}  Nc6 {[%clk 0:01:57]} 21. g3 {[%clk 0:00:54]}  g5 {[%clk 0:01:44]} 22. Rd2 {[%clk 0:00:43]}  g4 {[%clk 0:01:38]} 23. Nh4 {[%clk 0:00:37]}  cxd4 {[%clk 0:01:37]} 24. exd4 {[%clk 0:00:32]}  Nxd4 {[%clk 0:01:33]} 25. Kg2 {[%clk 0:00:31]}  Nf3 {[%clk 0:01:28]} 26. Rxd6 {[%clk 0:00:31]}  Nxh4+ {[%clk 0:01:28]} 27. gxh4 {[%clk 0:00:31]}  Rxd6 {[%clk 0:01:29]} 28. Rc7 {[%clk 0:00:28]}  a5 {[%clk 0:01:24]} 29. Rb7 {[%clk 0:00:28]}  Kg7 {[%clk 0:01:20]} 30. h3 {[%clk 0:00:28]}  gxh3+ {[%clk 0:01:17]} 31. Kxh3 {[%clk 0:00:29]}  Kg6 {[%clk 0:01:17]} 32. Kg4 {[%clk 0:00:29]}  h5+ {[%clk 0:01:14]} 33. Kf4 {[%clk 0:00:29]}  Rd4+ {[%clk 0:01:13]} 34. Kg3 {[%clk 0:00:29]}  Rd6 {[%clk 0:01:11]} 35. f3 {[%clk 0:00:28]}  a4 {[%clk 0:01:08]} 36. Kf4 {[%clk 0:00:27]}  Rd4+ {[%clk 0:00:56]} 37. Kg3 {[%clk 0:00:26]}  Rd6 {[%clk 0:00:54]} 38. Kf4 {[%clk 0:00:26]}  Rc6 {[%clk 0:00:53]} 39. Kg3 {[%clk 0:00:18]}  Kf6 {[%clk 0:00:53]} 40. Kf4 {[%clk 0:00:19]}  Rc4+ {[%clk 0:00:52]} 41. Kg3 {[%clk 0:00:19]}  Rc6 {[%clk 0:00:52]} 42. Kf4 {[%clk 0:00:19]}  e5+ {[%clk 0:00:51]} 43. Ke3 {[%clk 0:00:13]}  Kg6 {[%clk 0:00:41]} 44. Ke4 {[%clk 0:00:12]}  Kf6 {[%clk 0:00:36]} 45. Ke3 {[%clk 0:00:08]}  Ke6 {[%clk 0:00:36]} 46. f4 {[%clk 0:00:07]}  f6 {[%clk 0:00:32]} 47. Rb8 {[%clk 0:00:05]}  exf4+ {[%clk 0:00:29]} 48. Kxf4 {[%clk 0:00:06]}  Rc4+ {[%clk 0:00:29]} 49. Kg3 {[%clk 0:00:05]}  Rc6 {[%clk 0:00:29]} 50. Kf4 {[%clk 0:00:06]}  Rd6 {[%clk 0:00:28]} 51. Ke4 {[%clk 0:00:05]}  Rc6 {[%clk 0:00:27]} 52. Kf4 {[%clk 0:00:05]} 1/2-1/2


[Site "https://www.chess.com"]

[Event "Titled Tuesday Blitz January 03 Late 2023"]
[White "ArchibaldCerveza29"]
[Black "Gascon Del Nogal, Jose Rafael"]
[BlackFideId "3902463"]
[WhiteElo "2509"]
[BlackElo "2459"]
[Result "1-0"]
[Round "08"]
[TimeControl "180+2"]
[Date "2023.01.03"]
[WhiteClock "0:00:26"]
[BlackClock "0:00:02"]

1. d4 {[%clk 0:03:00]}  Nf6 {[%clk 0:02:59]} 2. Nf3 {[%clk 0:03:00]}  g6 {[%clk 0:02:59]} 3. b3 {[%clk 0:03:00]}  Bg7 {[%clk 0:02:59]} 4. Bb2 {[%clk 0:03:01]}  O-O {[%clk 0:02:58]} 5. e3 {[%clk 0:03:02]}  b6 {[%clk 0:02:55]} 6. Be2 {[%clk 0:03:01]}  Bb7 {[%clk 0:02:55]} 7. O-O {[%clk 0:03:02]}  d6 {[%clk 0:02:55]} 8. c4 {[%clk 0:03:02]}  e6 {[%clk 0:02:54]} 9. Nc3 {[%clk 0:03:01]}  Ne4 {[%clk 0:02:53]} 10. Qc2 {[%clk 0:02:58]}  Nxc3 {[%clk 0:02:52]} 11. Bxc3 {[%clk 0:02:58]}  c5 {[%clk 0:02:25]} 12. Rfd1 {[%clk 0:02:19]}  cxd4 {[%clk 0:02:20]} 13. Nxd4 {[%clk 0:02:20]}  a6 {[%clk 0:02:01]} 14. Rd2 {[%clk 0:02:17]}  Qe7 {[%clk 0:01:56]} 15. Rad1 {[%clk 0:02:16]}  Rd8 {[%clk 0:01:50]} 16. Bf3 {[%clk 0:02:09]}  Bxf3 {[%clk 0:01:49]} 17. Nxf3 {[%clk 0:02:09]}  Nc6 {[%clk 0:01:40]} 18. Bxg7 {[%clk 0:02:05]}  Kxg7 {[%clk 0:01:41]} 19. Nd4 {[%clk 0:02:02]}  Rac8 {[%clk 0:01:29]} 20. Qc3 {[%clk 0:01:50]}  Qf6 {[%clk 0:01:21]} 21. h3 {[%clk 0:01:22]}  Nxd4 {[%clk 0:00:50]} 22. Qxd4 {[%clk 0:01:23]}  Qxd4 {[%clk 0:00:43]} 23. Rxd4 {[%clk 0:01:24]}  Rc6 {[%clk 0:00:42]} 24. Kf1 {[%clk 0:01:21]}  Kf6 {[%clk 0:00:42]} 25. Ke2 {[%clk 0:01:21]}  Ke7 {[%clk 0:00:42]} 26. e4 {[%clk 0:01:19]}  b5 {[%clk 0:00:41]} 27. cxb5 {[%clk 0:01:18]}  axb5 {[%clk 0:00:33]} 28. R1d2 {[%clk 0:01:17]}  h5 {[%clk 0:00:22]} 29. g4 {[%clk 0:01:13]}  h4 {[%clk 0:00:19]} 30. f4 {[%clk 0:01:12]}  Rc3 {[%clk 0:00:18]} 31. R4d3 {[%clk 0:01:10]}  Rxd3 {[%clk 0:00:18]} 32. Kxd3 {[%clk 0:01:11]}  Ra8 {[%clk 0:00:17]} 33. Kc3 {[%clk 0:01:07]}  Kd7 {[%clk 0:00:17]} 34. Kb4 {[%clk 0:01:07]}  Kc6 {[%clk 0:00:17]} 35. Rc2+ {[%clk 0:01:07]}  Kb6 {[%clk 0:00:18]} 36. Rd2 {[%clk 0:01:07]}  Rd8 {[%clk 0:00:17]} 37. a4 {[%clk 0:00:48]}  bxa4 {[%clk 0:00:17]} 38. bxa4 {[%clk 0:00:49]}  d5 {[%clk 0:00:18]} 39. exd5 {[%clk 0:00:48]}  exd5 {[%clk 0:00:19]} 40. a5+ {[%clk 0:00:47]}  Kc6 {[%clk 0:00:16]} 41. Rc2+ {[%clk 0:00:45]}  Kd6 {[%clk 0:00:16]} 42. a6 {[%clk 0:00:43]}  Ra8 {[%clk 0:00:08]} 43. Kb5 {[%clk 0:00:43]}  d4 {[%clk 0:00:07]} 44. Kb6 {[%clk 0:00:37]}  Rb8+ {[%clk 0:00:05]} 45. Ka5 {[%clk 0:00:33]}  Rb3 {[%clk 0:00:06]} 46. a7 {[%clk 0:00:31]}  Ra3+ {[%clk 0:00:03]} 47. Kb6 {[%clk 0:00:31]}  d3 {[%clk 0:00:03]} 48. Rd2 {[%clk 0:00:28]}  Rb3+ {[%clk 0:00:01]} 49. Ka6 {[%clk 0:00:28]}  Ra3+ {[%clk 0:00:02]} 50. Kb7 {[%clk 0:00:28]}  Rb3+ {[%clk 0:00:02]} 51. Kc8 {[%clk 0:00:29]}  Rc3+ {[%clk 0:00:02]} 52. Kd8 {[%clk 0:00:26]} 1-0


[Site "https://www.chess.com"]